Workbook

Sheet relatorio
C2: Planilha de Ressarcimento Convênio FAP/UNIFESP | I2: Descrição dos equipamentos
B4: Dados do Projeto | I4: Equipamento | J4: horas/mês | K4: insumo | L4: manutenção | M4: depreciação | N4: Total
B5: Projeto: a | N5: =SUM(K5:M5) -> 0
B6: Número: a | N6: =SUM(K6:M6) -> 0
B7: Campus: Osasco | N7: =SUM(K7:M7) -> 0
B8: Unidade Administrativa: a | N8: 0
N9: 0
B10: Coordenador: a | E10: RF: a | N10: 0
B11: Vigência: 05/08/2003 à 01/12/2004 | C11: (X)Novo Projeto | E11: ( )Prorrogação de Vigência | N11: 0
N12: 0
B13: Grupo de Despesas | N13: 0
B14: 1. Apoio | C14: Unidade | D14: Vr. unitário | E14: Qtd/mês | F14: Valor | N14: 0
B15: 1.1 administrativo | C15: hora | D15: =memoria!B11 -> 16,67 | E15: 33 | F15: =D15*E15 -> 550.11 | N15: 0
B16: 1.2 TI | C16: hora | D16: =memoria!B11 -> 16,67 | E16: 2 | F16: =D16*E16 -> 33.34 | N16: 0
B17: 1.3 laboratorial e outros | C17: hora | D17: =memoria!B11 -> 16,67 | F17: 0 | N17: 0
B18: Subtotal grupo 1 (mensal) | F18: =SUM(F15:F17) -> 583.45 | N18: 0
N19: 0
B20: 2. Espaço Físico | C20: Unidade | D20: Vr. unitário | E20: Qtd | F20: Valor | N20: 0
B21: Sala de aula, auditório e anfiteatros | C21: m² | D21: 28,95 | E21: 50 | F21: =D21*E21 -> 1447.5 | N21: 0
B22: Laboratórios | C22: m² | D22: 28,95 | F22: =D22*E22 -> 0 | N22: 0
B23: Subtotal grupo 2 (mensal) | F23: =F21+F22 -> 1447.5 | N23: 0
N24: 0
B25: 3.Infraestrutura | C25: Unidade | D25: Vr. unitário | E25: Qtd | F25: Valor | N25: 0
B26: Custo operacional m² | C26: m² | D26: =memoria!B28 -> 18,02 | E26: =E21+E22 -> 50 | F26: =D26*E26 -> 901 | N26: 0
B27: Custo de depreciação m² | C27: m² | D27: =memoria!B36 -> 21,32 | E27: =E21+E22 -> 50 | F27: =D27*E27 -> 1066 | N27: 0
B28: Subtotal grupo 3 (mensal) | F28: =F26+F27 -> 1967 | N28: 0
N29: 0
B30: 4. Equipamentos | C30: Unidade | F30: Valor total | N30: 0
B31: 4.1 insumos ou matéria prima | C31: consumo/mês | F31: =K41 -> 0 | N31: 0
B32: 4.2 manutenção operacional | C32: R$/mês | F32: =L41 -> 0 | N32: 0
B33: 4.3 depreciação | C33: R$/mês | F33: =M41 -> 0 | N33: 0
B34: Subtotal grupo 4 (mensal) | F34: =SUM(F31:F33) -> 0 | N34: 0
N35: 0
B36: Ressarcimento | N36: 0
B37: Abatimento: | F37: 0.5 | N37: 0
B38: Total mensal (R$/mês) : | F38: =F18+F23+F28+F34 -> 3997.95 | N38: 0
B39: Total mensal com abatimento (R$/mês): | F39: =F38*(1-F37) -> 1998.975 | N39: 0
B40: Vigência (meses) : | F40: 16 | N40: 0
B41: Valor Total de Ressarcimento do Projeto | F41: =F39*F40 -> 31983.6 | I41: Total | K41: =SUM(K5:K40) -> 0 | L41: =SUM(L5:L40) -> 0 | M41: 0 | N41: 0
B42: Observações:
I43: Observações:
B46: _______________________________ | D46: Osasco, 14 de agosto de 2017.
B47: Diretor administrativo

Sheet memoria
A1: Celebração de Convênios - apoio administrativo
A2: Setor | B2: Horas
A3: Setor Acadêmico Proponente | B3: 40
A4: Núcleo de Convênios | B4: 24
A5: Coordenadoria de Convênios | B5: 12
A6: Procuradoria | B6: 24
A7: Trimestral | B7: 100
A8: Mês (mínimo de horas necessárias) | B8: 33.33333333
A10: Vr hora servidores - TAE
A11: Salarios nível (D e E/2)/220 | B11: 16,67
A13: Espaço físico | B13: m² avaliado de cada campus- referência RU/reprografia
A14: metragem | B14: soma da metragem de todos os espaços utilizados na pesquisa
A16: Custo operacional
A17: vigilância ostensiva | B17: 11334666.57 | D17: Metragem unifesp p/campus | E17: m² | F17: R$/m2
A18: manutenção e conserv. De bens imoveis | B18: 1838894.57 | D18: Diadema | E18: 17301.57 | F18: 16,46
A19: manutenção e conserv. De maquinas e equip. | B19: 2217369.02 | D19: Guarulhos | E19: 35578.73 | F19: 11,29
A20: serviços de energia elétrica | B20: 15386820.28 | D20: Osasco | E20: 8000 | F20: 28,95
A21: serviços de agua e esgoto | B21: 6838855.7 | D21: Reitoria | E21: 9065.33 | F21: 21,91
A22: serviços de telecomunicações | B22: 1381963.65 | D22: Baixada Santista | E22: 25443.89 | F22: 24,12
A23: limpeza e conservação | B23: 8843383.06 | D23: São José dos Campos | E23: 30416.72 | F23: 18,25
A24: comunicação de dados | B24: 1724305.69 | D24: São Paulo | E24: 103359.03 | F24: 21,91
A25: Total | B25: 49566258.54 | D25: Total da metragem útil | E25: 229165.27
A26: Total de metragem unifesp | B26: 229165.27
A27: VR m² ano | B27: 216.2904464
A28: VR m² mês | B28: 18,02
A30: Custo de amortização/depreciação
A31: Edificações | B31: 1173063109 | D31: =B31+B32 -> 1563431596
A32: Mobiliário | B32: 390368487.3 | D32: =D31/(B34*25) -> 272.8915417
A33: Total | B33: 1173063109 | D33: =D32/12 -> 22.74096181
A34: Metragem Unifesp | B34: 229165.27
A35: VR m² ano | B35: =B33/B34 -> 5118.852035
A36: VR m² mês | B36: 21,32
A38: Insumos | B38: valor indicado pelo coordenador
A41: Equipamentos - manutenção
A42: Exemplo: 200.000,00*0,40/(10*12*160)
A43: 200.000,00 - Vr do equipamento de aquisição
A44: 0,40 - percentual de manutenção (40%) | B44: 0.4
A45: 10 - vida útil do equipamento
A46: 12 - meses ano
A47: 160 - horas mês | B47: 160
A49: Depreciação
A50: Exemplo: 200.000,00/(10*12*160)
A51: 200.000,00 - Vr do equipamento de aquisição
A52: 10 - vida útil do equipamento
A53: 12 - meses ano
A54: 160 - horas mês
A56: ** só é cobrado o valor do m2 útil, mas o valor é calculado com base no m2 total.
A57: ***incluir taxa de juros (depreciação e manutenção)

Sheet equipamentos
A1: Campus | B1: Departamento | C1: Descrição do equipamento | D1: patrimonio | E1: data de aquisição | F1: valor de compra | G1: vida útil | H1: Manutenção | I1: Uso/depreciação
A2: Osasco | B2: Eixo Multidiciplinar | C2: Computador/Módulo Stratosphere | D2: 172001 | E2: 01/01/2015 | F2: R$ 79.877,20 | G2: 5 | H2: =F2*memoria!$B$44/(G2*12*memoria!$B$47) -> 3.328216667 | I2: =F2/(G2*12*memoria!$B$47) -> 8.320541667
A3: Osasco | B3: Eixo Multidiciplinar | C3: Computador/Módulo Stratosphere | D3: 172002 | E3: 01/01/2015 | F3: R$ 79.877,20 | G3: 5 | H3: =F3*memoria!$B$44/(G3*12*memoria!$B$47) -> 3.328216667 | I3: =F3/(G3*12*memoria!$B$47) -> 8.320541667
G4: 1 | H4: =F4*memoria!$B$44/(G4*12*memoria!$B$47) -> 0 | I4: =F4/(G4*12*memoria!$B$47) -> 0
G5: 1 | H5: =F5*memoria!$B$44/(G5*12*memoria!$B$47) -> 0 | I5: =F5/(G5*12*memoria!$B$47) -> 0
G6: 1 | H6: =F6*memoria!$B$44/(G6*12*memoria!$B$47) -> 0 | I6: =F6/(G6*12*memoria!$B$47) -> 0
G7: 1 | H7: =F7*memoria!$B$44/(G7*12*memoria!$B$47) -> 0 | I7: =F7/(G7*12*memoria!$B$47) -> 0
G8: 1 | H8: =F8*memoria!$B$44/(G8*12*memoria!$B$47) -> 0 | I8: =F8/(G8*12*memoria!$B$47) -> 0
G9: 1 | H9: =F9*memoria!$B$44/(G9*12*memoria!$B$47) -> 0 | I9: =F9/(G9*12*memoria!$B$47) -> 0
G10: 1 | H10: =F10*memoria!$B$44/(G10*12*memoria!$B$47) -> 0 | I10: =F10/(G10*12*memoria!$B$47) -> 0
G11: 1 | H11: =F11*memoria!$B$44/(G11*12*memoria!$B$47) -> 0 | I11: =F11/(G11*12*memoria!$B$47) -> 0
G12: 1 | H12: =F12*memoria!$B$44/(G12*12*memoria!$B$47) -> 0 | I12: =F12/(G12*12*memoria!$B$47) -> 0
G13: 1 | H13: =F13*memoria!$B$44/(G13*12*memoria!$B$47) -> 0 | I13: =F13/(G13*12*memoria!$B$47) -> 0
G14: 1 | H14: =F14*memoria!$B$44/(G14*12*memoria!$B$47) -> 0 | I14: =F14/(G14*12*memoria!$B$47) -> 0
G15: 1 | H15: =F15*memoria!$B$44/(G15*12*memoria!$B$47) -> 0 | I15: =F15/(G15*12*memoria!$B$47) -> 0
G16: 1 | H16: =F16*memoria!$B$44/(G16*12*memoria!$B$47) -> 0 | I16: =F16/(G16*12*memoria!$B$47) -> 0
G17: 1 | H17: =F17*memoria!$B$44/(G17*12*memoria!$B$47) -> 0 | I17: =F17/(G17*12*memoria!$B$47) -> 0
G18: 1 | H18: =F18*memoria!$B$44/(G18*12*memoria!$B$47) -> 0 | I18: =F18/(G18*12*memoria!$B$47) -> 0
G19: 1 | H19: =F19*memoria!$B$44/(G19*12*memoria!$B$47) -> 0 | I19: =F19/(G19*12*memoria!$B$47) -> 0
G20: 1 | H20: =F20*memoria!$B$44/(G20*12*memoria!$B$47) -> 0 | I20: =F20/(G20*12*memoria!$B$47) -> 0
G21: 1 | H21: =F21*memoria!$B$44/(G21*12*memoria!$B$47) -> 0 | I21: =F21/(G21*12*memoria!$B$47) -> 0
G22: 1 | H22: =F22*memoria!$B$44/(G22*12*memoria!$B$47) -> 0 | I22: =F22/(G22*12*memoria!$B$47) -> 0
G23: 1 | H23: =F23*memoria!$B$44/(G23*12*memoria!$B$47) -> 0 | I23: =F23/(G23*12*memoria!$B$47) -> 0
G24: 1 | H24: =F24*memoria!$B$44/(G24*12*memoria!$B$47) -> 0 | I24: =F24/(G24*12*memoria!$B$47) -> 0
G25: 1 | H25: =F25*memoria!$B$44/(G25*12*memoria!$B$47) -> 0 | I25: =F25/(G25*12*memoria!$B$47) -> 0
G26: 1 | H26: =F26*memoria!$B$44/(G26*12*memoria!$B$47) -> 0 | I26: =F26/(G26*12*memoria!$B$47) -> 0
G27: 1 | H27: =F27*memoria!$B$44/(G27*12*memoria!$B$47) -> 0 | I27: =F27/(G27*12*memoria!$B$47) -> 0
G28: 1 | H28: =F28*memoria!$B$44/(G28*12*memoria!$B$47) -> 0 | I28: =F28/(G28*12*memoria!$B$47) -> 0
G29: 1 | H29: =F29*memoria!$B$44/(G29*12*memoria!$B$47) -> 0 | I29: =F29/(G29*12*memoria!$B$47) -> 0
G30: 1 | H30: =F30*memoria!$B$44/(G30*12*memoria!$B$47) -> 0 | I30: =F30/(G30*12*memoria!$B$47) -> 0
G31: 1 | H31: =F31*memoria!$B$44/(G31*12*memoria!$B$47) -> 0 | I31: =F31/(G31*12*memoria!$B$47) -> 0
G32: 1 | H32: =F32*memoria!$B$44/(G32*12*memoria!$B$47) -> 0 | I32: =F32/(G32*12*memoria!$B$47) -> 0
G33: 1 | H33: =F33*memoria!$B$44/(G33*12*memoria!$B$47) -> 0 | I33: =F33/(G33*12*memoria!$B$47) -> 0
G34: 1 | H34: =F34*memoria!$B$44/(G34*12*memoria!$B$47) -> 0 | I34: =F34/(G34*12*memoria!$B$47) -> 0
G35: 1 | H35: =F35*memoria!$B$44/(G35*12*memoria!$B$47) -> 0 | I35: =F35/(G35*12*memoria!$B$47) -> 0
G36: 1 | H36: =F36*memoria!$B$44/(G36*12*memoria!$B$47) -> 0 | I36: =F36/(G36*12*memoria!$B$47) -> 0
G37: 1 | H37: =F37*memoria!$B$44/(G37*12*memoria!$B$47) -> 0 | I37: =F37/(G37*12*memoria!$B$47) -> 0
G38: 1 | H38: =F38*memoria!$B$44/(G38*12*memoria!$B$47) -> 0 | I38: =F38/(G38*12*memoria!$B$47) -> 0
G39: 1 | H39: =F39*memoria!$B$44/(G39*12*memoria!$B$47) -> 0 | I39: =F39/(G39*12*memoria!$B$47) -> 0
G40: 1 | H40: =F40*memoria!$B$44/(G40*12*memoria!$B$47) -> 0 | I40: =F40/(G40*12*memoria!$B$47) -> 0
G41: 1 | H41: =F41*memoria!$B$44/(G41*12*memoria!$B$47) -> 0 | I41: =F41/(G41*12*memoria!$B$47) -> 0
G42: 1 | H42: =F42*memoria!$B$44/(G42*12*memoria!$B$47) -> 0 | I42: =F42/(G42*12*memoria!$B$47) -> 0
G43: 1 | H43: =F43*memoria!$B$44/(G43*12*memoria!$B$47) -> 0 | I43: =F43/(G43*12*memoria!$B$47) -> 0
G44: 1 | H44: =F44*memoria!$B$44/(G44*12*memoria!$B$47) -> 0 | I44: =F44/(G44*12*memoria!$B$47) -> 0
G45: 1 | H45: =F45*memoria!$B$44/(G45*12*memoria!$B$47) -> 0 | I45: =F45/(G45*12*memoria!$B$47) -> 0
G46: 1 | H46: =F46*memoria!$B$44/(G46*12*memoria!$B$47) -> 0 | I46: =F46/(G46*12*memoria!$B$47) -> 0
G47: 1 | H47: =F47*memoria!$B$44/(G47*12*memoria!$B$47) -> 0 | I47: =F47/(G47*12*memoria!$B$47) -> 0
G48: 1 | H48: =F48*memoria!$B$44/(G48*12*memoria!$B$47) -> 0 | I48: =F48/(G48*12*memoria!$B$47) -> 0
G49: 1 | H49: =F49*memoria!$B$44/(G49*12*memoria!$B$47) -> 0 | I49: =F49/(G49*12*memoria!$B$47) -> 0
G50: 1 | H50: =F50*memoria!$B$44/(G50*12*memoria!$B$47) -> 0 | I50: =F50/(G50*12*memoria!$B$47) -> 0
G51: 1 | H51: =F51*memoria!$B$44/(G51*12*memoria!$B$47) -> 0 | I51: =F51/(G51*12*memoria!$B$47) -> 0
G52: 1 | H52: =F52*memoria!$B$44/(G52*12*memoria!$B$47) -> 0 | I52: =F52/(G52*12*memoria!$B$47) -> 0
G53: 1 | H53: =F53*memoria!$B$44/(G53*12*memoria!$B$47) -> 0 | I53: =F53/(G53*12*memoria!$B$47) -> 0
G54: 1 | H54: =F54*memoria!$B$44/(G54*12*memoria!$B$47) -> 0 | I54: =F54/(G54*12*memoria!$B$47) -> 0
G55: 1 | H55: =F55*memoria!$B$44/(G55*12*memoria!$B$47) -> 0 | I55: =F55/(G55*12*memoria!$B$47) -> 0
G56: 1 | H56: =F56*memoria!$B$44/(G56*12*memoria!$B$47) -> 0 | I56: =F56/(G56*12*memoria!$B$47) -> 0
G57: 1 | H57: =F57*memoria!$B$44/(G57*12*memoria!$B$47) -> 0 | I57: =F57/(G57*12*memoria!$B$47) -> 0
G58: 1 | H58: =F58*memoria!$B$44/(G58*12*memoria!$B$47) -> 0 | I58: =F58/(G58*12*memoria!$B$47) -> 0
G59: 1 | H59: =F59*memoria!$B$44/(G59*12*memoria!$B$47) -> 0 | I59: =F59/(G59*12*memoria!$B$47) -> 0
G60: 1 | H60: =F60*memoria!$B$44/(G60*12*memoria!$B$47) -> 0 | I60: =F60/(G60*12*memoria!$B$47) -> 0
G61: 1 | H61: =F61*memoria!$B$44/(G61*12*memoria!$B$47) -> 0 | I61: =F61/(G61*12*memoria!$B$47) -> 0
G62: 1 | H62: =F62*memoria!$B$44/(G62*12*memoria!$B$47) -> 0 | I62: =F62/(G62*12*memoria!$B$47) -> 0
G63: 1 | H63: =F63*memoria!$B$44/(G63*12*memoria!$B$47) -> 0 | I63: =F63/(G63*12*memoria!$B$47) -> 0
G64: 1 | H64: =F64*memoria!$B$44/(G64*12*memoria!$B$47) -> 0 | I64: =F64/(G64*12*memoria!$B$47) -> 0
G65: 1 | H65: =F65*memoria!$B$44/(G65*12*memoria!$B$47) -> 0 | I65: =F65/(G65*12*memoria!$B$47) -> 0
G66: 1 | H66: =F66*memoria!$B$44/(G66*12*memoria!$B$47) -> 0 | I66: =F66/(G66*12*memoria!$B$47) -> 0
G67: 1 | H67: =F67*memoria!$B$44/(G67*12*memoria!$B$47) -> 0 | I67: =F67/(G67*12*memoria!$B$47) -> 0
G68: 1 | H68: =F68*memoria!$B$44/(G68*12*memoria!$B$47) -> 0 | I68: =F68/(G68*12*memoria!$B$47) -> 0
G69: 1 | H69: =F69*memoria!$B$44/(G69*12*memoria!$B$47) -> 0 | I69: =F69/(G69*12*memoria!$B$47) -> 0
G70: 1 | H70: =F70*memoria!$B$44/(G70*12*memoria!$B$47) -> 0 | I70: =F70/(G70*12*memoria!$B$47) -> 0
G71: 1 | H71: =F71*memoria!$B$44/(G71*12*memoria!$B$47) -> 0 | I71: =F71/(G71*12*memoria!$B$47) -> 0
G72: 1 | H72: =F72*memoria!$B$44/(G72*12*memoria!$B$47) -> 0 | I72: =F72/(G72*12*memoria!$B$47) -> 0
G73: 1 | H73: =F73*memoria!$B$44/(G73*12*memoria!$B$47) -> 0 | I73: =F73/(G73*12*memoria!$B$47) -> 0
G74: 1 | H74: =F74*memoria!$B$44/(G74*12*memoria!$B$47) -> 0 | I74: =F74/(G74*12*memoria!$B$47) -> 0
G75: 1 | H75: =F75*memoria!$B$44/(G75*12*memoria!$B$47) -> 0 | I75: =F75/(G75*12*memoria!$B$47) -> 0
G76: 1 | H76: =F76*memoria!$B$44/(G76*12*memoria!$B$47) -> 0 | I76: =F76/(G76*12*memoria!$B$47) -> 0
G77: 1 | H77: =F77*memoria!$B$44/(G77*12*memoria!$B$47) -> 0 | I77: =F77/(G77*12*memoria!$B$47) -> 0
G78: 1 | H78: =F78*memoria!$B$44/(G78*12*memoria!$B$47) -> 0 | I78: =F78/(G78*12*memoria!$B$47) -> 0
G79: 1 | H79: =F79*memoria!$B$44/(G79*12*memoria!$B$47) -> 0 | I79: =F79/(G79*12*memoria!$B$47) -> 0
G80: 1 | H80: =F80*memoria!$B$44/(G80*12*memoria!$B$47) -> 0 | I80: =F80/(G80*12*memoria!$B$47) -> 0
G81: 1 | H81: =F81*memoria!$B$44/(G81*12*memoria!$B$47) -> 0 | I81: =F81/(G81*12*memoria!$B$47) -> 0
G82: 1 | H82: =F82*memoria!$B$44/(G82*12*memoria!$B$47) -> 0 | I82: =F82/(G82*12*memoria!$B$47) -> 0
G83: 1 | H83: =F83*memoria!$B$44/(G83*12*memoria!$B$47) -> 0 | I83: =F83/(G83*12*memoria!$B$47) -> 0
G84: 1 | H84: =F84*memoria!$B$44/(G84*12*memoria!$B$47) -> 0 | I84: =F84/(G84*12*memoria!$B$47) -> 0
G85: 1 | H85: =F85*memoria!$B$44/(G85*12*memoria!$B$47) -> 0 | I85: =F85/(G85*12*memoria!$B$47) -> 0
G86: 1 | H86: =F86*memoria!$B$44/(G86*12*memoria!$B$47) -> 0 | I86: =F86/(G86*12*memoria!$B$47) -> 0
G87: 1 | H87: =F87*memoria!$B$44/(G87*12*memoria!$B$47) -> 0 | I87: =F87/(G87*12*memoria!$B$47) -> 0
G88: 1 | H88: =F88*memoria!$B$44/(G88*12*memoria!$B$47) -> 0 | I88: =F88/(G88*12*memoria!$B$47) -> 0
G89: 1 | H89: =F89*memoria!$B$44/(G89*12*memoria!$B$47) -> 0 | I89: =F89/(G89*12*memoria!$B$47) -> 0
G90: 1 | H90: =F90*memoria!$B$44/(G90*12*memoria!$B$47) -> 0 | I90: =F90/(G90*12*memoria!$B$47) -> 0
G91: 1 | H91: =F91*memoria!$B$44/(G91*12*memoria!$B$47) -> 0 | I91: =F91/(G91*12*memoria!$B$47) -> 0
G92: 1 | H92: =F92*memoria!$B$44/(G92*12*memoria!$B$47) -> 0 | I92: =F92/(G92*12*memoria!$B$47) -> 0
G93: 1 | H93: =F93*memoria!$B$44/(G93*12*memoria!$B$47) -> 0 | I93: =F93/(G93*12*memoria!$B$47) -> 0
G94: 1 | H94: =F94*memoria!$B$44/(G94*12*memoria!$B$47) -> 0 | I94: =F94/(G94*12*memoria!$B$47) -> 0
G95: 1 | H95: =F95*memoria!$B$44/(G95*12*memoria!$B$47) -> 0 | I95: =F95/(G95*12*memoria!$B$47) -> 0
G96: 1 | H96: =F96*memoria!$B$44/(G96*12*memoria!$B$47) -> 0 | I96: =F96/(G96*12*memoria!$B$47) -> 0
G97: 1 | H97: =F97*memoria!$B$44/(G97*12*memoria!$B$47) -> 0 | I97: =F97/(G97*12*memoria!$B$47) -> 0
G98: 1 | H98: =F98*memoria!$B$44/(G98*12*memoria!$B$47) -> 0 | I98: =F98/(G98*12*memoria!$B$47) -> 0
G99: 1 | H99: =F99*memoria!$B$44/(G99*12*memoria!$B$47) -> 0 | I99: =F99/(G99*12*memoria!$B$47) -> 0
G100: 1 | H100: =F100*memoria!$B$44/(G100*12*memoria!$B$47) -> 0 | I100: =F100/(G100*12*memoria!$B$47) -> 0
G101: 1 | H101: =F101*memoria!$B$44/(G101*12*memoria!$B$47) -> 0 | I101: =F101/(G101*12*memoria!$B$47) -> 0
G102: 1 | H102: =F102*memoria!$B$44/(G102*12*memoria!$B$47) -> 0 | I102: =F102/(G102*12*memoria!$B$47) -> 0
G103: 1 | H103: =F103*memoria!$B$44/(G103*12*memoria!$B$47) -> 0 | I103: =F103/(G103*12*memoria!$B$47) -> 0
G104: 1 | H104: =F104*memoria!$B$44/(G104*12*memoria!$B$47) -> 0 | I104: =F104/(G104*12*memoria!$B$47) -> 0
G105: 1 | H105: =F105*memoria!$B$44/(G105*12*memoria!$B$47) -> 0 | I105: =F105/(G105*12*memoria!$B$47) -> 0
G106: 1 | H106: =F106*memoria!$B$44/(G106*12*memoria!$B$47) -> 0 | I106: =F106/(G106*12*memoria!$B$47) -> 0
G107: 1 | H107: =F107*memoria!$B$44/(G107*12*memoria!$B$47) -> 0 | I107: =F107/(G107*12*memoria!$B$47) -> 0
G108: 1 | H108: =F108*memoria!$B$44/(G108*12*memoria!$B$47) -> 0 | I108: =F108/(G108*12*memoria!$B$47) -> 0
G109: 1 | H109: =F109*memoria!$B$44/(G109*12*memoria!$B$47) -> 0 | I109: =F109/(G109*12*memoria!$B$47) -> 0
G110: 1 | H110: =F110*memoria!$B$44/(G110*12*memoria!$B$47) -> 0 | I110: =F110/(G110*12*memoria!$B$47) -> 0
G111: 1 | H111: =F111*memoria!$B$44/(G111*12*memoria!$B$47) -> 0 | I111: =F111/(G111*12*memoria!$B$47) -> 0
G112: 1 | H112: =F112*memoria!$B$44/(G112*12*memoria!$B$47) -> 0 | I112: =F112/(G112*12*memoria!$B$47) -> 0
G113: 1 | H113: =F113*memoria!$B$44/(G113*12*memoria!$B$47) -> 0 | I113: =F113/(G113*12*memoria!$B$47) -> 0
G114: 1 | H114: =F114*memoria!$B$44/(G114*12*memoria!$B$47) -> 0 | I114: =F114/(G114*12*memoria!$B$47) -> 0
G115: 1 | H115: =F115*memoria!$B$44/(G115*12*memoria!$B$47) -> 0 | I115: =F115/(G115*12*memoria!$B$47) -> 0
G116: 1 | H116: =F116*memoria!$B$44/(G116*12*memoria!$B$47) -> 0 | I116: =F116/(G116*12*memoria!$B$47) -> 0
G117: 1 | H117: =F117*memoria!$B$44/(G117*12*memoria!$B$47) -> 0 | I117: =F117/(G117*12*memoria!$B$47) -> 0
G118: 1 | H118: =F118*memoria!$B$44/(G118*12*memoria!$B$47) -> 0 | I118: =F118/(G118*12*memoria!$B$47) -> 0
G119: 1 | H119: =F119*memoria!$B$44/(G119*12*memoria!$B$47) -> 0 | I119: =F119/(G119*12*memoria!$B$47) -> 0
G120: 1 | H120: =F120*memoria!$B$44/(G120*12*memoria!$B$47) -> 0 | I120: =F120/(G120*12*memoria!$B$47) -> 0
G121: 1 | H121: =F121*memoria!$B$44/(G121*12*memoria!$B$47) -> 0 | I121: =F121/(G121*12*memoria!$B$47) -> 0
G122: 1 | H122: =F122*memoria!$B$44/(G122*12*memoria!$B$47) -> 0 | I122: =F122/(G122*12*memoria!$B$47) -> 0
G123: 1 | H123: =F123*memoria!$B$44/(G123*12*memoria!$B$47) -> 0 | I123: =F123/(G123*12*memoria!$B$47) -> 0
G124: 1 | H124: =F124*memoria!$B$44/(G124*12*memoria!$B$47) -> 0 | I124: =F124/(G124*12*memoria!$B$47) -> 0
G125: 1 | H125: =F125*memoria!$B$44/(G125*12*memoria!$B$47) -> 0 | I125: =F125/(G125*12*memoria!$B$47) -> 0
G126: 1 | H126: =F126*memoria!$B$44/(G126*12*memoria!$B$47) -> 0 | I126: =F126/(G126*12*memoria!$B$47) -> 0
G127: 1 | H127: =F127*memoria!$B$44/(G127*12*memoria!$B$47) -> 0 | I127: =F127/(G127*12*memoria!$B$47) -> 0
G128: 1 | H128: =F128*memoria!$B$44/(G128*12*memoria!$B$47) -> 0 | I128: =F128/(G128*12*memoria!$B$47) -> 0
G129: 1 | H129: =F129*memoria!$B$44/(G129*12*memoria!$B$47) -> 0 | I129: =F129/(G129*12*memoria!$B$47) -> 0
G130: 1 | H130: =F130*memoria!$B$44/(G130*12*memoria!$B$47) -> 0 | I130: =F130/(G130*12*memoria!$B$47) -> 0
G131: 1 | H131: =F131*memoria!$B$44/(G131*12*memoria!$B$47) -> 0 | I131: =F131/(G131*12*memoria!$B$47) -> 0
G132: 1 | H132: =F132*memoria!$B$44/(G132*12*memoria!$B$47) -> 0 | I132: =F132/(G132*12*memoria!$B$47) -> 0
G133: 1 | H133: =F133*memoria!$B$44/(G133*12*memoria!$B$47) -> 0 | I133: =F133/(G133*12*memoria!$B$47) -> 0
G134: 1 | H134: =F134*memoria!$B$44/(G134*12*memoria!$B$47) -> 0 | I134: =F134/(G134*12*memoria!$B$47) -> 0
G135: 1 | H135: =F135*memoria!$B$44/(G135*12*memoria!$B$47) -> 0 | I135: =F135/(G135*12*memoria!$B$47) -> 0
G136: 1 | H136: =F136*memoria!$B$44/(G136*12*memoria!$B$47) -> 0 | I136: =F136/(G136*12*memoria!$B$47) -> 0
G137: 1 | H137: =F137*memoria!$B$44/(G137*12*memoria!$B$47) -> 0 | I137: =F137/(G137*12*memoria!$B$47) -> 0
G138: 1 | H138: =F138*memoria!$B$44/(G138*12*memoria!$B$47) -> 0 | I138: =F138/(G138*12*memoria!$B$47) -> 0
G139: 1 | H139: =F139*memoria!$B$44/(G139*12*memoria!$B$47) -> 0 | I139: =F139/(G139*12*memoria!$B$47) -> 0
G140: 1 | H140: =F140*memoria!$B$44/(G140*12*memoria!$B$47) -> 0 | I140: =F140/(G140*12*memoria!$B$47) -> 0
G141: 1 | H141: =F141*memoria!$B$44/(G141*12*memoria!$B$47) -> 0 | I141: =F141/(G141*12*memoria!$B$47) -> 0
G142: 1 | H142: =F142*memoria!$B$44/(G142*12*memoria!$B$47) -> 0 | I142: =F142/(G142*12*memoria!$B$47) -> 0
G143: 1 | H143: =F143*memoria!$B$44/(G143*12*memoria!$B$47) -> 0 | I143: =F143/(G143*12*memoria!$B$47) -> 0
G144: 1 | H144: =F144*memoria!$B$44/(G144*12*memoria!$B$47) -> 0 | I144: =F144/(G144*12*memoria!$B$47) -> 0
G145: 1 | H145: =F145*memoria!$B$44/(G145*12*memoria!$B$47) -> 0 | I145: =F145/(G145*12*memoria!$B$47) -> 0
G146: 1 | H146: =F146*memoria!$B$44/(G146*12*memoria!$B$47) -> 0 | I146: =F146/(G146*12*memoria!$B$47) -> 0
G147: 1 | H147: =F147*memoria!$B$44/(G147*12*memoria!$B$47) -> 0 | I147: =F147/(G147*12*memoria!$B$47) -> 0
G148: 1 | H148: =F148*memoria!$B$44/(G148*12*memoria!$B$47) -> 0 | I148: =F148/(G148*12*memoria!$B$47) -> 0
G149: 1 | H149: =F149*memoria!$B$44/(G149*12*memoria!$B$47) -> 0 | I149: =F149/(G149*12*memoria!$B$47) -> 0
G150: 1 | H150: =F150*memoria!$B$44/(G150*12*memoria!$B$47) -> 0 | I150: =F150/(G150*12*memoria!$B$47) -> 0
G151: 1 | H151: =F151*memoria!$B$44/(G151*12*memoria!$B$47) -> 0 | I151: =F151/(G151*12*memoria!$B$47) -> 0
G152: 1 | H152: =F152*memoria!$B$44/(G152*12*memoria!$B$47) -> 0 | I152: =F152/(G152*12*memoria!$B$47) -> 0
G153: 1 | H153: =F153*memoria!$B$44/(G153*12*memoria!$B$47) -> 0 | I153: =F153/(G153*12*memoria!$B$47) -> 0
G154: 1 | H154: =F154*memoria!$B$44/(G154*12*memoria!$B$47) -> 0 | I154: =F154/(G154*12*memoria!$B$47) -> 0
G155: 1 | H155: =F155*memoria!$B$44/(G155*12*memoria!$B$47) -> 0 | I155: =F155/(G155*12*memoria!$B$47) -> 0
G156: 1 | H156: =F156*memoria!$B$44/(G156*12*memoria!$B$47) -> 0 | I156: =F156/(G156*12*memoria!$B$47) -> 0
G157: 1 | H157: =F157*memoria!$B$44/(G157*12*memoria!$B$47) -> 0 | I157: =F157/(G157*12*memoria!$B$47) -> 0
G158: 1 | H158: =F158*memoria!$B$44/(G158*12*memoria!$B$47) -> 0 | I158: =F158/(G158*12*memoria!$B$47) -> 0
G159: 1 | H159: =F159*memoria!$B$44/(G159*12*memoria!$B$47) -> 0 | I159: =F159/(G159*12*memoria!$B$47) -> 0
G160: 1 | H160: =F160*memoria!$B$44/(G160*12*memoria!$B$47) -> 0 | I160: =F160/(G160*12*memoria!$B$47) -> 0
G161: 1 | H161: =F161*memoria!$B$44/(G161*12*memoria!$B$47) -> 0 | I161: =F161/(G161*12*memoria!$B$47) -> 0
G162: 1 | H162: =F162*memoria!$B$44/(G162*12*memoria!$B$47) -> 0 | I162: =F162/(G162*12*memoria!$B$47) -> 0
G163: 1 | H163: =F163*memoria!$B$44/(G163*12*memoria!$B$47) -> 0 | I163: =F163/(G163*12*memoria!$B$47) -> 0
G164: 1 | H164: =F164*memoria!$B$44/(G164*12*memoria!$B$47) -> 0 | I164: =F164/(G164*12*memoria!$B$47) -> 0
G165: 1 | H165: =F165*memoria!$B$44/(G165*12*memoria!$B$47) -> 0 | I165: =F165/(G165*12*memoria!$B$47) -> 0
G166: 1 | H166: =F166*memoria!$B$44/(G166*12*memoria!$B$47) -> 0 | I166: =F166/(G166*12*memoria!$B$47) -> 0
G167: 1 | H167: =F167*memoria!$B$44/(G167*12*memoria!$B$47) -> 0 | I167: =F167/(G167*12*memoria!$B$47) -> 0
G168: 1 | H168: =F168*memoria!$B$44/(G168*12*memoria!$B$47) -> 0 | I168: =F168/(G168*12*memoria!$B$47) -> 0
G169: 1 | H169: =F169*memoria!$B$44/(G169*12*memoria!$B$47) -> 0 | I169: =F169/(G169*12*memoria!$B$47) -> 0
G170: 1 | H170: =F170*memoria!$B$44/(G170*12*memoria!$B$47) -> 0 | I170: =F170/(G170*12*memoria!$B$47) -> 0
G171: 1 | H171: =F171*memoria!$B$44/(G171*12*memoria!$B$47) -> 0 | I171: =F171/(G171*12*memoria!$B$47) -> 0
G172: 1 | H172: =F172*memoria!$B$44/(G172*12*memoria!$B$47) -> 0 | I172: =F172/(G172*12*memoria!$B$47) -> 0
G173: 1 | H173: =F173*memoria!$B$44/(G173*12*memoria!$B$47) -> 0 | I173: =F173/(G173*12*memoria!$B$47) -> 0
G174: 1 | H174: =F174*memoria!$B$44/(G174*12*memoria!$B$47) -> 0 | I174: =F174/(G174*12*memoria!$B$47) -> 0
G175: 1 | H175: =F175*memoria!$B$44/(G175*12*memoria!$B$47) -> 0 | I175: =F175/(G175*12*memoria!$B$47) -> 0
G176: 1 | H176: =F176*memoria!$B$44/(G176*12*memoria!$B$47) -> 0 | I176: =F176/(G176*12*memoria!$B$47) -> 0
G177: 1 | H177: =F177*memoria!$B$44/(G177*12*memoria!$B$47) -> 0 | I177: =F177/(G177*12*memoria!$B$47) -> 0
G178: 1 | H178: =F178*memoria!$B$44/(G178*12*memoria!$B$47) -> 0 | I178: =F178/(G178*12*memoria!$B$47) -> 0
G179: 1 | H179: =F179*memoria!$B$44/(G179*12*memoria!$B$47) -> 0 | I179: =F179/(G179*12*memoria!$B$47) -> 0
G180: 1 | H180: =F180*memoria!$B$44/(G180*12*memoria!$B$47) -> 0 | I180: =F180/(G180*12*memoria!$B$47) -> 0
G181: 1 | H181: =F181*memoria!$B$44/(G181*12*memoria!$B$47) -> 0 | I181: =F181/(G181*12*memoria!$B$47) -> 0
G182: 1 | H182: =F182*memoria!$B$44/(G182*12*memoria!$B$47) -> 0 | I182: =F182/(G182*12*memoria!$B$47) -> 0
G183: 1 | H183: =F183*memoria!$B$44/(G183*12*memoria!$B$47) -> 0 | I183: =F183/(G183*12*memoria!$B$47) -> 0
G184: 1 | H184: =F184*memoria!$B$44/(G184*12*memoria!$B$47) -> 0 | I184: =F184/(G184*12*memoria!$B$47) -> 0
G185: 1 | H185: =F185*memoria!$B$44/(G185*12*memoria!$B$47) -> 0 | I185: =F185/(G185*12*memoria!$B$47) -> 0
G186: 1 | H186: =F186*memoria!$B$44/(G186*12*memoria!$B$47) -> 0 | I186: =F186/(G186*12*memoria!$B$47) -> 0
G187: 1 | H187: =F187*memoria!$B$44/(G187*12*memoria!$B$47) -> 0 | I187: =F187/(G187*12*memoria!$B$47) -> 0
G188: 1 | H188: =F188*memoria!$B$44/(G188*12*memoria!$B$47) -> 0 | I188: =F188/(G188*12*memoria!$B$47) -> 0
G189: 1 | H189: =F189*memoria!$B$44/(G189*12*memoria!$B$47) -> 0 | I189: =F189/(G189*12*memoria!$B$47) -> 0
G190: 1 | H190: =F190*memoria!$B$44/(G190*12*memoria!$B$47) -> 0 | I190: =F190/(G190*12*memoria!$B$47) -> 0
G191: 1 | H191: =F191*memoria!$B$44/(G191*12*memoria!$B$47) -> 0 | I191: =F191/(G191*12*memoria!$B$47) -> 0
G192: 1 | H192: =F192*memoria!$B$44/(G192*12*memoria!$B$47) -> 0 | I192: =F192/(G192*12*memoria!$B$47) -> 0
G193: 1 | H193: =F193*memoria!$B$44/(G193*12*memoria!$B$47) -> 0 | I193: =F193/(G193*12*memoria!$B$47) -> 0
G194: 1 | H194: =F194*memoria!$B$44/(G194*12*memoria!$B$47) -> 0 | I194: =F194/(G194*12*memoria!$B$47) -> 0
G195: 1 | H195: =F195*memoria!$B$44/(G195*12*memoria!$B$47) -> 0 | I195: =F195/(G195*12*memoria!$B$47) -> 0
G196: 1 | H196: =F196*memoria!$B$44/(G196*12*memoria!$B$47) -> 0 | I196: =F196/(G196*12*memoria!$B$47) -> 0
G197: 1 | H197: =F197*memoria!$B$44/(G197*12*memoria!$B$47) -> 0 | I197: =F197/(G197*12*memoria!$B$47) -> 0
G198: 1 | H198: =F198*memoria!$B$44/(G198*12*memoria!$B$47) -> 0 | I198: =F198/(G198*12*memoria!$B$47) -> 0
G199: 1 | H199: =F199*memoria!$B$44/(G199*12*memoria!$B$47) -> 0 | I199: =F199/(G199*12*memoria!$B$47) -> 0
G200: 1 | H200: =F200*memoria!$B$44/(G200*12*memoria!$B$47) -> 0 | I200: =F200/(G200*12*memoria!$B$47) -> 0
... 4300 more rows

Sheet logs
A1: Dados do Projeto | D1: Responsável | H1: Prazo | K1: Apoio | O1: Espaço fisíco | R1: Infraestrutura | S1: Equipamentos | W1: Total | X1: Tipo | Y1: Abatimento
A2: Observações | B2: Nome | C2: número | D2: Nome | E2: RF | F2: Departamento | G2: Campus | H2: Novo | I2: Início | J2: Fim | K2: administrativo | L2: TI | M2: Laboratorial e outros | N2: Total | O2: Salas e anfiteatros | P2: Laboratórios | Q2: total | R2: total | S2: insumos | T2: manutenção | U2: depreciação | V2: total

Sheet auxiliar
A1: Medição e controle | B1: 15
A2: Comunicação | B2: 10
A3: Médicos e odontológicos | B3: 15
A4: Esportes | B4: 10
A5: Industriais | B5: 20
A6: Informática | B6: 5
A7: Ferramentas | B7: 10
A8: Máquinas | B8: 10
A9: Marítimos | B9: 15
A10: Proteção e segurança | B10: 10

Sheet eventos
C2: Planilha de Ressarcimento Eventos | I2: Descrição dos equipamentos
B4: Dados do Evento | I4: Equipamento | J4: horas/dia | K4: insumo | L4: manutenção | M4: depreciação | N4: Total
B5: Evento: a | N5: =SUM(K5:M5) -> 0
B6: Número: a | N6: =SUM(K6:M6) -> 0
B7: Campus: Osasco | N7: =SUM(K7:M7) -> 0
N8: 0
N9: 0
B10: Responsável: a | E10: RF: a | N10: 0
B11: Vigência: 01/01/2001 à 01/02/2001 | N11: 0
N12: 0
B13: Grupo de Despesas | N13: 0
B14: 1. Apoio | C14: Unidade | D14: Vr. unitário | E14: Qtd/dia | F14: Valor | N14: 0
B15: 1.1 administrativo | C15: hora | D15: =memoria!B11 -> 16,67 | E15: 5 | F15: =D15*E15 -> 83.35 | N15: 0
B16: Subtotal grupo 1 (diário) | F16: =SUM(F15:F15) -> 83.35 | N16: 0
N17: 0
B18: 2. Espaço Físico | C18: Unidade | D18: Vr. unitário | E18: Qtd | F18: Valor | N18: 0
B19: Sala de aula, auditório e anfiteatros | C19: m² | D19: 0.965 | E19: 50 | F19: =D19*E19 -> 48.25 | N19: 0
B20: Laboratórios | C20: m² | D20: 0.965 | F20: =D20*E20 -> 0 | N20: 0
B21: Subtotal grupo 2 (diário) | F21: =F19+F20 -> 48.25 | N21: 0
N22: 0
B23: 3.Infraestrutura | C23: Unidade | D23: Vr. unitário | E23: Qtd | F23: Valor | N23: 0
B24: Custo operacional m² | C24: m² | D24: =(memoria!B28)/30 -> 0.6006666667 | E24: =E19+E20 -> 50 | F24: =D24*E24 -> 30.03333333 | N24: 0
B25: Custo de depreciação m² | C25: m² | D25: =(memoria!B36)/30 -> 0.7106666667 | E25: =E19+E20 -> 50 | F25: =D25*E25 -> 35.53333333 | N25: 0
B26: Subtotal grupo 3 (diário) | F26: =F24+F25 -> 65.56666667 | N26: 0
N27: 0
B28: 4. Equipamentos | C28: Unidade | F28: Valor total | N28: 0
B29: 4.1 insumos ou matéria prima | C29: consumo/dia | F29: =K41 -> 0 | N29: 0
B30: 4.2 manutenção operacional | C30: R$/dia | F30: =L41 -> 0 | N30: 0
B31: 4.3 depreciação | C31: R$/dia | F31: =M41 -> 0 | N31: 0
B32: Subtotal grupo 4 (diário) | F32: =SUM(F29:F31) -> 0 | N32: 0
N33: 0
B34: Ressarcimento | N34: 0
B35: Abatimento: | F35: 0.3 | N35: 0
B36: Total diário (R$/dia) : | F36: =F16+F21+F26+F32 -> 197.1666667 | N36: 0
B37: Total diário com abatimento (R$/dia) : | F37: =(1-F35)*F36 -> 138.0166667 | N37: 0
B38: Quantidade de dias : | F38: 30 | N38: 0
B39: Valor Total de Ressarcimento do Evento | F39: =F37*F38 -> 4140.5 | N39: 0
B40: Observações: | N40: 0
I41: Total | K41: =SUM(K5:K40) -> 0 | L41: =SUM(L5:L40) -> 0 | M41: 0 | N41: 0
I43: Observações:
B44: _______________________________ | D44: Osasco, 14 de agosto de 2017.
B45: Diretor administrativo
